fUSD/lending_fUSD_20240612
["ID","MTS","AMOUNT","RATE_DAILY","PERIOD"]
[329247134,1718199071190,-486.7,0.00020958,2]
[329247135,1718199071201,-507.5,0.00020958,2]
[329247136,1718199071212,-333.28,0.00020958,2]
[329247137,1718199071222,-200.0,0.00020966,2]
[329247138,1718199071244,-12725.39162434,0.00021,2]
[329247139,1718199071263,-5000.0,0.00021,2]
[329247140,1718199071274,-201.594972,0.00021,2]
[329247141,1718199071285,-300.0,0.00021,2]
[329247142,1718199071297,-500.0,0.00021095,2]
[329247143,1718199071310,-526.65,0.00021095,2]
[329247144,1718199071321,-500.0,0.00021095,2]
[329247145,1718199071333,-402.7310236,0.00021095,2]
[329247146,1718199071345,-500.0,0.00021095,2]
[329247147,1718199071360,-500.0,0.00021095,2]
[329247148,1718199071372,-500.0,0.00021095,2]
[329247149,1718199071383,-500.0,0.00021095,2]
[329247150,1718199071394,-500.0,0.00021095,2]
[329247151,1718199071405,-500.0,0.00021095,2]
[329247152,1718199071416,-500.0,0.00021095,2]
[329247153,1718199071429,-500.0,0.00021095,2]
[329247154,1718199071440,-500.0,0.00021095,2]
[329247155,1718199071452,-500.0,0.00021095,2]
[329247156,1718199071465,-522.16,0.00021095,2]
[329247157,1718199071479,-500.0,0.00021095,2]
[329247158,1718199071492,-507.5,0.00021095,2]
[329247159,1718199071506,-476.01,0.00021114,2]
[329247160,1718199071519,-769.90905642,0.000212,2]
[329247161,1718199071531,-527.95,0.00021232,2]
[329247162,1718199071546,-526.65,0.00021232,2]
[329247163,1718199071563,-500.0,0.00021232,2]
[329247164,1718199071573,-500.0,0.00021232,2]
[329247165,1718199071587,-178.08,0.00021232,2]
[329247166,1718199071600,-608.08,0.00021232,2]
[329247167,1718199071614,-500.0,0.00021232,2]
[329247168,1718199071626,-500.0,0.00021232,2]
[329247169,1718199071638,-500.0,0.00021232,2]
[329247170,1718199071651,-500.0,0.00021232,2]
[329247171,1718199071663,-500.0,0.00021232,2]
[329247172,1718199071674,-500.0,0.00021232,2]
[329247173,1718199071687,-167.89376112,0.00021232,2]
[329247174,1718199071699,-500.0,0.00021232,2]
[329247175,1718199071710,-507.5,0.00021232,2]
[329247176,1718199071722,-2100.0,0.00021299,2]
[329247177,1718199071783,-300.0,0.00021299,2]
[329247178,1718199071794,-526.65,0.00021369,2]
[329247179,1718199071807,-500.0,0.00021369,2]
[329247180,1718199071818,-500.0,0.00021369,2]
[329247181,1718199071828,-615.52,0.00021369,2]
[329247182,1718199071838,-500.0,0.00021369,2]
[329247183,1718199071849,-500.0,0.00021369,2]
[329247184,1718199071862,-500.0,0.00021369,2]
[329247185,1718199071873,-584.56,0.00021369,2]
[329247186,1718199071884,-500.0,0.00021369,2]
[329247187,1718199071898,-500.0,0.00021369,2]
[329247188,1718199071909,-507.5,0.00021369,2]
[329247189,1718199071922,-526.65,0.00021506,2]
[329247190,1718199071935,-557.28,0.00021506,2]
[329247191,1718199071947,-338.72,0.00021506,2]
[329247192,1718199071959,-622.64,0.00021506,2]
[329247193,1718199071969,-500.0,0.00021506,2]
[329247194,1718199071981,-500.0,0.00021506,2]
[329247195,1718199071992,-500.0,0.00021506,2]
[329247196,1718199072004,-500.0,0.00021506,2]
[329247197,1718199072017,-507.5,0.00021506,2]
[329247198,1718199072027,-526.65,0.00021643,2]
[329247199,1718199072037,-435.45767118,0.00021643,2]
[329247200,1718199072049,-500.0,0.00021643,2]
[329247201,1718199072064,-500.0,0.00021643,2]
[329247202,1718199072078,-500.0,0.00021643,2]
[329247203,1718199072088,-507.5,0.00021643,2]
[329247204,1718199072099,-526.65,0.0002178,2]
[329247205,1718199072111,-500.0,0.0002178,2]
[329247206,1718199072121,-251.52,0.0002178,2]
[329247207,1718199072132,-500.0,0.0002178,2]
[329247208,1718199072142,-507.5,0.0002178,2]
[329247209,1718199072153,-855.0,0.000219,2]
[329247210,1718199072163,-786.11547363,0.00021917,2]
[329247211,1718199072173,-526.65,0.00021917,2]
[329247212,1718199072184,-500.0,0.00021917,2]
[329247213,1718199072195,-500.84,0.00021917,2]
[329247214,1718199072206,-507.5,0.00021917,2]
[329247215,1718199072217,-544.52,0.00021918,2]
[329247216,1718199072229,-250.0,0.00021918,2]
[329247217,1718199072258,-912.56,0.00021918,2]
[329247218,1718199072271,-400.0,0.00021939,2]
[329247219,1718199072282,-183.62178432,0.00021979,2]
[329247220,1718199072292,-791.01559774,0.00022,2]
[329247221,1718199072307,-526.65,0.00022054,2]
[329247222,1718199072318,-498.08,0.00022054,2]
[329247223,1718199072328,-507.5,0.00022054,2]
[329247224,1718199072338,-800.0,0.00022056,2]
[329247225,1718199072349,-526.65,0.00022191,2]
[329247226,1718199072361,-507.5,0.00022191,2]
[329247227,1718199072372,-526.69299349,0.00022328,2]
[329247228,1718199072383,-507.64178465,0.00022328,2]
[329247229,1718199072393,-549.58287642,0.000224,2]
[329247230,1718199072405,-329.03818738,0.00022685,2]
[329247231,1718199072416,-211.48852501,0.000227,2]
[329247232,1718199072426,-160.0,0.00022875,2]
[329247233,1718199072436,-200.0,0.00023,2]
[329247234,1718199072447,-417.62,0.00023134,2]
[329247235,1718199072457,-851.24,0.00023134,2]
[329247236,1718199072471,-851.24,0.00023134,2]
[329247237,1718199072481,-415.1,0.00023134,2]
[329247238,1718199072491,-200.0,0.00023295,2]
[329247239,1718199072501,-476.01,0.00023378,2]
[329247240,1718199072513,-295.76,0.00023451,2]
[329247241,1718199072523,-514.867956,0.000236,2]
[329247242,1718199072539,-240.86766576,0.000238,2]
[329247243,1718199072552,-460.17032969,0.00024,2]
[329247244,1718199072564,-389.87799912,0.00024005,2]
[329247245,1718199072575,-153.39895734,0.00024019,2]
[329247246,1718199072586,-173.66983019,0.0002402,2]
[329247247,1718199072597,-304.79717943,0.00024029,2]
[329247248,1718199072609,-417.44,0.00024043,2]
[329247249,1718199072621,-152.75193077,0.00024049,2]
[329247250,1718199072633,-153.94035106,0.00024054,2]
[329247251,1718199072643,-153.61759239,0.00024069,2]
[329247252,1718199072656,-190.83647872,0.00024069,2]
[329247253,1718199072668,-173.66983019,0.00024074,2]
[329247254,1718199072678,-175.77050318,0.00024088,2]
[329247255,1718199072693,-190.83647873,0.00024093,2]
[329247256,1718199072704,-153.61759239,0.00024095,2]
[329247257,1718199072716,-173.66983019,0.00024106,2]
[329247258,1718199072726,-881.67603579,0.0002411,2]
[329247259,1718199072737,-156.8309882,0.00024141,2]
[329247260,1718199072749,-344.92882581,0.00024148,2]
[329247261,1718199072761,-153.61759239,0.0002415,2]
[329247262,1718199072772,-166.63300066,0.0002416,2]
[329247263,1718199072787,-151.48043344,0.00024162,2]
[329247264,1718199072798,-881.67603579,0.00024163,2]
[329247265,1718199072812,-175.77050318,0.00024166,2]
[329247266,1718199072823,-344.92882581,0.0002417,2]
[329247267,1718199072834,-881.67603579,0.0002418,2]
[329247268,1718199072845,-344.92882581,0.00024186,2]
[329247269,1718199072857,-5000.0,0.00024187,2]
[329247270,1718199072867,-158.32026496,0.00024199,2]
[329247271,1718199072878,-3869.52159676,0.00024207,2]
[329247272,1718199072890,-752.65082927,0.00024213,2]
[329247273,1718199072902,-180.0,0.0002423,2]
[329247274,1718199072914,-152.75193077,0.00024235,2]
[329247275,1718199072925,-344.92882581,0.00024275,2]
[329247276,1718199072938,-153.61759239,0.00024281,2]
[329247277,1718199072950,-152.75193077,0.00024285,2]
[329247278,1718199072961,-154.70478789,0.00024294,2]
[329247279,1718199072975,-151.0,0.00024317,3]
[329247280,1718199072985,-1219.88,0.00024329,30]
[329247281,1718199072995,-1582.08216051,0.00024351,2]
[329247282,1718199073006,-395.4349564,0.00024366,2]
[329247283,1718199073017,-3869.52159676,0.00024373,2]
[329247284,1718199073028,-152.75193077,0.00024375,2]
[329247285,1718199073039,-423.72,0.00024384,2]
[329247286,1718199073052,-180.97773516,0.00024387,2]
[329247287,1718199073062,-752.65082927,0.0002439,2]
[329247288,1718199073072,-152.75193077,0.00024402,2]
[329247289,1718199073084,-3869.52159676,0.00024422,2]
[329247290,1718199073094,-159.55162632,0.00024425,2]
[329247291,1718199073105,-166.66666666,0.00024434,2]
[329247292,1718199073115,-881.67603579,0.00024436,2]
[329247293,1718199073125,-153.61759239,0.0002444,2]
[329247294,1718199073136,-881.67603579,0.00024442,2]
[329247295,1718199073146,-395.4349564,0.00024456,2]
[329247296,1718199073157,-153.94035106,0.00024461,2]
[329247297,1718199073168,-172.72952371,0.00024467,2]
[329247298,1718199073178,-153.61759239,0.00024486,2]
[329247299,1718199073189,-389.87799912,0.00024487,2]
[329247300,1718199073199,-389.87799912,0.0002449,2]
[329247301,1718199073210,-881.67603579,0.00024498,2]
[329247302,1718199073221,-175.77050318,0.00024499,2]
[329247303,1718199073231,-665.104244,0.000245,3]
[329247304,1718199073260,-881.67603579,0.00024503,2]
[329247305,1718199073272,-569.84,0.00024504,2]
[329247306,1718199073283,-151.73,0.00024504,2]
[329247307,1718199073294,-150.0,0.00024504,2]
[329247308,1718199073307,-422.86,0.00024504,2]
[329247309,1718199073320,-150.0,0.00024504,2]
[329247310,1718199073332,-150.0,0.00024504,2]
[329247311,1718199073343,-353.61,0.00024504,2]
[329247312,1718199073354,-152.56,0.00024504,2]
[329247313,1718199073367,-150.0,0.00024504,2]
[329247314,1718199073378,-164.28,0.00024504,2]
[329247315,1718199073390,-164.28,0.00024504,2]
[329247316,1718199073401,-150.0,0.00024504,2]
[329247317,1718199073414,-353.61,0.00024504,2]
[329247318,1718199073425,-526.66,0.00024504,2]
[329247319,1718199073437,-150.0,0.00024504,2]
[329247320,1718199073447,-150.0,0.00024504,2]
[329247321,1718199073460,-150.0,0.00024504,2]
[329247322,1718199073476,-422.86,0.00024504,2]
[329247323,1718199073487,-422.86,0.00024504,2]
[329247324,1718199073498,-150.0,0.00024504,2]
[329247325,1718199073513,-526.66,0.00024504,2]
[329247326,1718199073527,-150.0,0.00024504,2]
[329247327,1718199073538,-353.61,0.00024504,2]
[329247328,1718199073553,-150.0,0.00024504,2]
[329247329,1718199073565,-150.0,0.00024504,2]
[329247330,1718199073576,-150.0,0.00024504,2]
[329247331,1718199073587,-164.28,0.00024504,2]
[329247332,1718199073599,-175.77050318,0.00024511,2]
[329247333,1718199073615,-153.39895734,0.00024512,2]
[329247334,1718199073633,-154.70478789,0.00024512,2]
[329247335,1718199073657,-150.0,0.00024515,2]
[329247336,1718199073674,-1582.08216051,0.00024518,2]
[329247337,1718199073686,-175.77050318,0.00024537,2]
[329247338,1718199073698,-881.67603579,0.00024546,2]
[329247339,1718199073718,-166.66666666,0.00024548,2]
[329247340,1718199073728,-153.51553158,0.00024564,2]
[329247341,1718199073744,-175.77050318,0.00024582,2]
[329247342,1718199073755,-153.94035106,0.00024589,2]
[329247343,1718199073769,-395.4349564,0.00024595,2]
[329247344,1718199073783,-153.61759239,0.00024628,2]
[329247345,1718199073796,-160.69768341,0.00024629,2]
[329247346,1718199073809,-166.66666666,0.00024631,2]
[329247347,1718199073820,-3869.52159676,0.00024637,2]
[329247348,1718199073832,-151.48043344,0.00024656,2]
[329247349,1718199073844,-173.66983019,0.00024679,2]
[329247350,1718199073855,-4523.1480416,0.00024689,2]
[329247351,1718199073865,-152.75193077,0.00024699,2]
[329247352,1718199073877,-229.60961875,0.000247,2]
[329247353,1718199074113,-626.04921726,0.000247,2]
[329247354,1718199074124,-154.70478789,0.0002471,2]
[329247355,1718199074134,-173.66983019,0.00024724,2]
[329247356,1718199074145,-504.07749511,0.00024729,2]
[329247357,1718199074156,-269.47015478,0.0002473,2]
[329247358,1718199074170,-573.86851446,0.0002473,2]
[329247364,1718199331072,10000.0,0.000101,2]
[329247366,1718199342886,240.0,0.00025818,120]
[329247368,1718199390766,307.64683952,0.00025,120]
[329247369,1718199392153,730.753905,0.00028,90]
[329247374,1718199885729,208.0,0.00025735,120]
[329247375,1718200070219,501.16,0.00028,90]
[329247377,1718200211154,1000.0,0.00028,120]
[329247382,1718200233232,-156.04639118,0.00012978,2]
[329247385,1718200233243,-260.5,0.00012978,2]
[329247387,1718200233254,-680.85507277,0.00012978,2]
[329247389,1718200233264,-307.56224401,0.00012978,2]
[329247391,1718200233277,-508.98507123,0.00012978,2]
[329247393,1718200233286,-161.8094454,0.00012979,2]
[329247395,1718200233298,-2267.01701663,0.00012979,2]
[329247396,1718200233308,-69012.56677733,0.0001298,2]
[329247398,1718200233321,-1094.72364763,0.0001298,2]
[329247399,1718200233334,-759.08000022,0.0001298,2]
[329247400,1718200233918,-1082.26155855,0.0001298,2]
[329247401,1718200233932,-1119.44553033,0.0001298,2]
[329247402,1718200233945,-856.26166783,0.0001298,2]
[329247403,1718200233959,-3122.66084388,0.0001298,2]
[329247404,1718200233972,-14034.14511522,0.0001298,2]
[329247405,1718200233983,-177.45,0.00013071,2]
[329247406,1718200233993,-400.0,0.000136,4]
[329247407,1718200234004,-800.0,0.000137,5]
[329247408,1718200234014,-1300.0,0.000138,5]
[329247409,1718200234027,-2057.03417196,0.000139,2]
[329247410,1718200234037,-183.62178432,0.000139,2]
[329247411,1718200234047,-4146.21903817,0.000139,2]
[329247412,1718200234057,-172.11582535,0.000139,2]
[329247413,1718200234068,-7401.27091985,0.000139,2]
[329247414,1718200234078,-1372.14314313,0.000139,5]
[329247415,1718200234090,-327.85685687,0.000139,5]
[329247416,1718200234101,-482.2654897,0.000139,2]
[329247417,1718200234114,-442.65276334,0.000139,2]
[329247418,1718200234125,-327.42503597,0.000139,2]
[329247419,1718200234135,-475.4199318,0.000139,2]
[329247420,1718200234146,-5873.55242456,0.000139,2]
[329247421,1718200234156,-197.40773294,0.0001399,2]
[329247422,1718200234166,-151.15,0.0001399,2]
[329247423,1718200234176,-151.15,0.0001399,2]
[329247424,1718200234188,-151.15,0.0001399,2]
[329247425,1718200234199,-151.15,0.0001399,2]
[329247426,1718200234211,-151.15,0.0001399,2]
[329247427,1718200234221,-151.15,0.0001399,2]
[329247428,1718200234232,-151.15,0.0001399,2]
[329247429,1718200234242,-151.15,0.0001399,2]
[329247430,1718200234252,-151.15,0.0001399,2]
[329247431,1718200234262,-151.15,0.0001399,2]
[329247432,1718200234273,-151.15,0.0001399,2]
[329247433,1718200234283,-151.15,0.0001399,2]
[329247434,1718200234293,-151.15,0.0001399,2]
[329247435,1718200234303,-151.15,0.0001399,2]
[329247436,1718200234313,-589.46766566,0.00014,2]
[329247437,1718200234326,-1231.85132041,0.00014,2]
[329247438,1718200234338,-311.84172578,0.00014,2]
[329247439,1718200234350,-922.4599996,0.00014,2]
[329247440,1718200234364,-2500.008256,0.00014,2]
[329247441,1718200234695,-800.5291891,0.00014,2]
[329247454,1718200239873,-12370.9587666,0.00014,2]
[329247455,1718200239887,-3018.13997834,0.00014,2]
[329247456,1718200239903,-346.7403356,0.00014,2]
[329247457,1718200239917,-285.59883823,0.00014,2]
[329247458,1718200239934,-3804.36369245,0.00014,2]
[329247459,1718200239946,-566.48468486,0.00014,2]
[329247460,1718200239964,-32907.94234365,0.00014,2]
[329247462,1718200240651,-69161.00000001,0.00014,2]
[329247464,1718200240666,-814.02780043,0.00014,2]
[329247466,1718200240698,-531.66401085,0.00014,2]
[329247468,1718200240712,-335.125,0.00014,2]
[329247470,1718200240730,-403.80780873,0.00014,2]
[329247638,1718200243095,-780.66000124,0.00013999,2]
[329247643,1718200243110,-33.46801739,0.00013999,2]
[329247645,1718200243121,-412.31795185,0.00014,2]
[329247647,1718200243134,-1753.1787566,0.00014,2]
[329247649,1718200243146,-1004.70943624,0.00014,2]
[329247701,1718200243723,-2366.84226352,0.00014,2]
[329247788,1718200244411,-3083.20767237,0.00014,2]
[329247791,1718200244425,-311.7686698,0.00014,2]
[329247795,1718200244440,-5969.43197019,0.00014,2]
[329247861,1718200245126,-345.30254868,0.00014,2]
[329247925,1718200245938,-461.74,0.00014,2]
[329247928,1718200245952,-314.33454932,0.00014,2]
[329247930,1718200245965,-399.00867878,0.00014,2]
[329247932,1718200245980,-301.394501,0.00014,2]
[329247934,1718200245992,-16927.30950229,0.00014,2]
[329247936,1718200246004,-770.51408107,0.00014,2]
[329247938,1718200246018,-1734.8,0.00014,2]
[329247940,1718200246033,-13817.6793821,0.00014,2]
[329247941,1718200246046,-3662.65,0.00014,2]
[329247942,1718200246059,-347.025,0.00014,2]
[329247943,1718200246073,-843.118017,0.00014,2]
[329247944,1718200246086,-3027.95925375,0.00014,2]
[329247945,1718200246099,-494.33920324,0.00014,2]
[329247982,1718200246641,-869.95370905,0.00014,2]
[329247985,1718200246658,-371.52217916,0.00014,2]
[329248095,1718200247973,-1242.03908621,0.00013999,2]
[329248097,1718200247983,-251486.26407332,0.00014,2]
[329248099,1718200247998,-1734.575,0.00014,2]
[329248124,1718200248666,-1058.81990289,0.00014,2]
[329248125,1718200248699,-112289.78271251,0.00014,2]
[329248126,1718200248713,-707.02783621,0.00014,2]
[329248127,1718200248726,-1605.82811784,0.00014,2]
[329248128,1718200248757,-6771.07684757,0.00014,2]
[329248288,1718200297216,-164.28935887,0.00013299,2]
[329248289,1718200297251,-415.14444039,0.000139,2]
[329248290,1718200297282,-326.34960167,0.000139,2]
[329248291,1718200297310,-1209.6207124,0.00013998,2]
[329248292,1718200297344,-942.35655589,0.00013998,2]
[329248293,1718200297376,-481.85167187,0.00013998,2]
[329248294,1718200297410,-5702.27299753,0.00013998,2]
[329248295,1718200297435,-715.81385658,0.00013998,2]
[329248296,1718200297463,-2350.65016854,0.00013998,2]
[329248297,1718200297492,-195.79238693,0.00013998,2]
[329248298,1718200297522,-3597.6238895,0.00013998,2]
[329248299,1718200297545,-260.5,0.00013998,2]
[329248300,1718200297569,-2374.14832813,0.00013998,2]
[329248301,1718200297594,-155.0,0.00013998,2]
[329248302,1718200297626,-688.78661675,0.00013999,2]
[329248303,1718200297654,-9257.90160746,0.00013999,2]
[329248304,1718200297678,-161.89780749,0.00013999,2]
[329248306,1718200521900,476.9,0.00028,120]
[329248307,1718200578328,1000.0,0.00028,120]
[329248324,1718201221469,-424.4611634,0.00012497,2]
[329248325,1718201221495,-1168.2232,0.00012498,2]
[329248326,1718201221526,-155.0,0.00012597,2]
[329248327,1718201221553,-382.60300411,0.00013728,2]
[329248328,1718201221582,-150.0,0.00013899,2]
[329248329,1718201221611,-8707.6649,0.000139,2]
[329248330,1718201221640,-167.92686501,0.000139,2]
[329248331,1718201221669,-160.13713916,0.000139,2]
[329248332,1718201221697,-698.4351,0.000139,2]
[329248333,1718201221725,-2043.198,0.000139,2]
[329248334,1718201221754,-326.34960167,0.000139,2]
[329248335,1718201221781,-179.6194651,0.000139,2]
[329248336,1718201221819,-946.99769836,0.000139,2]
[329248337,1718201221850,-413.92057913,0.00013967,2]
[329248338,1718201221880,-151.3,0.0001399,2]
[329248339,1718201221906,-151.3,0.0001399,2]
[329248340,1718201221933,-151.3,0.0001399,2]
[329248341,1718201221959,-151.3,0.0001399,2]
[329248342,1718201221987,-151.3,0.0001399,2]
[329248343,1718201222015,-151.3,0.0001399,2]
[329248344,1718201222044,-151.3,0.0001399,2]
[329248345,1718201222123,-151.3,0.0001399,2]
[329248346,1718201222156,-219.8813535,0.00013998,2]
[329248347,1718201222205,-263.13284192,0.00013998,2]
[329248348,1718201222261,-382.83909569,0.00013998,2]
[329248349,1718201222292,-195.87692784,0.00013998,2]
[329248350,1718201222334,-174.20196835,0.00013998,2]
[329248351,1718201222361,-542.8956905,0.00013998,2]
[329248352,1718201222393,-155.37726229,0.00013998,2]
[329248353,1718201222418,-218.06287764,0.00013998,2]
[329248354,1718201222447,-205.2059502,0.00013998,2]
[329248355,1718201222476,-525.09009724,0.00013998,2]
[329248356,1718201222514,-206.03170677,0.00013998,2]
[329248357,1718201222554,-1584.0047979,0.00013998,2]
[329248358,1718201222592,-1886.67919924,0.00013999,2]
[329248359,1718201222631,-56305.78351498,0.00014,2]
[329248360,1718201257641,165.89870881,0.000105,2]
[329248361,1718201257685,165.89870881,0.000105,2]
[329248362,1718201257712,165.89870881,0.000105,2]
[329248363,1718201257738,165.89870881,0.000105,2]
[329248364,1718201257769,165.89870881,0.000105,2]
[329248365,1718201257798,165.89870881,0.000105,2]
[329248366,1718201257829,165.89870881,0.000105,2]
[329248367,1718201257859,165.89870881,0.000105,2]
[329248368,1718201257886,165.89870881,0.000105,2]
[329248369,1718201257916,165.89870881,0.000105,2]
[329248370,1718201257945,165.89870881,0.000105,2]
[329248371,1718201257973,165.89870881,0.000105,2]
[329248372,1718201258003,165.89870881,0.000105,2]
[329248373,1718201258040,165.89870881,0.000105,2]
[329248374,1718201258084,165.89870881,0.000105,2]
[329248375,1718201258112,65.61528689,0.000105,2]
[329248376,1718201271637,150.0,0.000105,2]
[329248377,1718201271668,150.0,0.000105,2]
[329248378,1718201271693,150.0,0.000105,2]
[329248379,1718201271723,150.0,0.000105,2]
[329248380,1718201271749,150.0,0.000105,2]
[329248381,1718201271774,150.0,0.000105,2]
[329248382,1718201271800,150.0,0.000105,2]
[329248383,1718201271826,150.0,0.000105,2]
[329248384,1718201271858,150.0,0.000105,2]
[329248385,1718201271884,150.0,0.000105,2]
[329248386,1718201271913,150.0,0.000105,2]
[329248387,1718201271938,150.0,0.000105,2]
[329248388,1718201271963,150.0,0.000105,2]
[329248389,1718201271990,150.0,0.000105,2]
[329248390,1718201272022,454.09591904,0.000105,2]
[329248391,1718201289646,150.0,0.000105,2]
[329248392,1718201289676,93.49885941,0.000105,2]
[329248393,1718201296901,150.0,0.000105,2]
[329248394,1718201296934,150.0,0.000105,2]
[329248395,1718201296970,150.0,0.000105,2]
[329248396,1718201296997,150.0,0.000105,2]
[329248397,1718201297024,150.0,0.000105,2]
[329248398,1718201297057,150.0,0.000105,2]
[329248399,1718201297105,150.0,0.000105,2]
[329248400,1718201297135,150.0,0.000105,2]
[329248401,1718201297163,150.0,0.000105,2]
[329248402,1718201297194,14.00611956,0.000105,2]
[329248403,1718201307363,150.0,0.000105,2]
[329248404,1718201307387,5.0,0.000105,2]
[329248405,1718201307839,145.0,0.000105,2]
[329248406,1718201307864,150.0,0.000105,2]
[329248407,1718201307895,68.0831919,0.000105,2]
[329248408,1718201308147,81.9168081,0.000105,2]
[329248409,1718201308186,150.0,0.000105,2]
[329248410,1718201308226,116.06598822,0.000105,2]
[329248411,1718201308519,33.93401178,0.000105,2]
[329248412,1718201308573,121.06598822,0.000105,2]
[329248413,1718201309094,150.0,0.000105,2]
[329248414,1718201309127,5.0,0.000105,2]
[329248415,1718201313505,145.0,0.000105,2]
[329248416,1718201313534,150.0,0.000105,2]
[329248417,1718201313562,150.0,0.000105,2]
[329248418,1718201313588,150.0,0.000105,2]
[329248419,1718201313614,150.0,0.000105,2]
[329248420,1718201313639,150.0,0.000105,2]
[329248421,1718201313665,150.0,0.000105,2]
[329248422,1718201313694,150.0,0.000105,2]
[329248423,1718201313727,150.0,0.000105,2]
[329248424,1718201313756,150.0,0.000105,2]
[329248425,1718201313784,150.0,0.000105,2]
[329248426,1718201313817,150.0,0.000105,2]
[329248427,1718201313850,150.0,0.000105,2]
[329248428,1718201313877,150.0,0.000105,2]
[329248429,1718201313914,150.0,0.000105,2]
[329248430,1718201313948,150.0,0.000105,2]
[329248431,1718201313986,150.0,0.000105,2]
[329248432,1718201314023,150.0,0.000105,2]
[329248433,1718201314050,150.0,0.000105,2]
[329248434,1718201314077,150.0,0.000105,2]
[329248435,1718201314133,150.0,0.000105,2]
[329248436,1718201314161,269.28289436,0.000105,2]
[329248437,1718201314186,150.0,0.000105,2]
[329248438,1718201314212,150.0,0.000105,2]
[329248439,1718201314240,150.0,0.000105,2]
[329248440,1718201314265,150.0,0.000105,2]
[329248441,1718201314292,150.0,0.000105,2]
[329248442,1718201314320,150.0,0.000105,2]
[329248443,1718201314346,150.0,0.000105,2]
[329248444,1718201314378,15319.84045353,0.000105,2]
[329248445,1718201314911,1364.00611956,0.000105,2]
[329248446,1718201320269,150.0,0.000105,2]
[329248447,1718201320304,139.98015035,0.000105,2]
[329248448,1718201322019,150.0,0.000105,2]
[329248449,1718201322066,150.0,0.000105,2]
[329248450,1718201322125,47.67507592,0.000105,2]
[329248451,1718201322245,102.32492408,0.000105,2]
[329248452,1718201322285,52.67507592,0.000105,2]
[329248453,1718201323380,97.32492408,0.000105,2]
[329248454,1718201323436,150.0,0.000105,2]
[329248455,1718201323483,58.5284228,0.000105,2]
[329248456,1718201327137,150.0,0.000105,2]
[329248457,1718201327166,62.02692394,0.000105,2]
[329248458,1718201327653,150.0,0.000105,2]
[329248459,1718201327682,159.00205297,0.000105,2]
[329248460,1718201329989,19784.12334789,0.000105,2]
[329248461,1718201332904,1364.00611956,0.000105,2]
[329248462,1718201334293,289.98015035,0.000105,2]
[329248463,1718201346892,150.0,0.000105,2]
[329248464,1718201346921,36.77698018,0.000105,2]
[329248465,1718201348317,113.22301982,0.000105,2]
[329248466,1718201348354,41.77698018,0.000105,2]
[329248467,1718201349678,108.22301982,0.000105,2]
[329248468,1718201349707,150.0,0.000105,2]
[329248469,1718201349749,150.0,0.000105,2]
[329248470,1718201349798,150.0,0.000105,2]
[329248471,1718201349838,150.0,0.000105,2]
[329248472,1718201349873,150.0,0.000105,2]
[329248473,1718201349914,150.0,0.000105,2]
[329248474,1718201349952,150.0,0.000105,2]
[329248475,1718201349981,208.37866504,0.000105,2]